[Event "2nd Cambridge Open 2024"]
[Site "Cambridge"]
[Date "2024.02.19"]
[Round "1.38"]
[White "Rida, Ruqayyah"]
[Black "Redman, David J"]
[Result "1/2-1/2"]
[ECO "B04"]
[WhiteElo "1743"]
[BlackElo "1971"]
[Annotator "NA RC"]
[PlyCount "120"]
[EventDate "2024.02.18"]
[EventType "swiss"]
[EventCountry "ENG"]
[SourceTitle "playchess.com"]
[Source "ChessBase"]
[SourceQuality "1"]
[TimeControl "5400+30"]

1. e4 {[%emt 0:00:08]} Nf6 {[%emt 0:00:05]} 2. e5 {[%emt 0:00:12]} Nd5 {[%emt 0:00:04]} 3. d4 {[%emt 0:00:08]} d6 {[%emt 0:00:04]} 4. Nf3 {[%emt 0:00:15]} Nb6 {[%emt 0:06:46]} 5. Be2 {[%emt 0:04:36]} Nc6 {[%emt 0:07:50]} 6. exd6 {[%emt 0:01:27]} exd6 {[%emt 0:00:14]} 7. d5 {[%emt 0:08:18]} Ne5 {[%emt 0:11:01]} 8. O-O {[%emt 0:08:45]} Nxf3+ {[%emt 0:02:21]} 9. Bxf3 {[%emt 0:01:26]} Be7 {[%emt 0:00:31]} 10. c4 {[%emt 0:14:49]} O-O {[%emt 0:00:08]} 11. Qc2 {[%emt 0:02:23]} g6 {[%emt 0:04:20]} 12. Bh6 {[%emt 0:09:06]} Bf5 {[%emt 0:05:14]} 13. Qb3 {[%emt 0:05:18]} Re8 {[%emt 0:03:46]} 14. Nd2 {[%emt 0:04:35]} Bg5 {[%emt 0:02:48]} 15. Bxg5 {[%emt 0:03:08]} Qxg5 {[%emt 0:00:04]} 16. Qc3 {[%emt 0:01:39]} Nd7 $11 {[%emt 0:12:37]} 17. b4 {[%emt 0:04:59]} b6 {[%emt 0:12:09]} 18. Rae1 {[%emt 0:05:48]} h5 {[%emt 0:13:19]} 19. Be4 {[%emt 0:08:26]} Bxe4 {[%emt 0:05:55]} 20. Nxe4 {[%emt 0:00:05]} Qf4 {[%emt 0:00:32]} 21. Qd4 {[%emt 0:06:31]} Ne5 {[%emt 0:00:09]} 22. f3 {[%emt 0:02:04]} h4 {[%emt 0:05:23]} 23. Qc3 {[%emt 0:00:46]} h3 {[%emt 0:02:23]} 24. g3 {[%emt 0:01:16]} Qf5 {[%emt 0:00:01]} 25. Re3 {[%emt 0:03:03]} f6 {[%emt 0:01:51]} 26. Rfe1 {[%emt 0:01:16]} Kf7 {[%emt 0:00:29]} 27. Nd2 {[%emt 0:02:19]} Nd3 {[%emt 0:01:41]} 28. Rxe8 {[%emt 0:00:50]} Rxe8 {[%emt 0:02:45]} 29. Rxe8 {[%emt 0:00:14]} Kxe8 {[%emt 0:00:00]} 30. g4 {[%emt 0:00:09]} Nf4 {[%emt 0:00:00]} 31. gxf5 {[%emt 0:00:56]} Ne2+ {[%emt 0:00:00]} 32. Kf2 {[%emt 0:00:37]} Nxc3 {[%emt 0:00:00]} 33. fxg6 {[%emt 0:00:22]} Nxa2 {[%emt 0:00:00]} 34. Ne4 {[%emt 0:00:58]} f5 {[%emt 0:00:16]} 35. Ng3 {[%emt 0:00:33]} Nxb4 {[%emt 0:00:03]} 36. Nxf5 {[%emt 0:00:07]} a5 {[%emt 0:00:10]} 37. g7 {[%emt 0:00:51]} Kf7 {[%emt 0:00:03]} 38. Ke3 {[%emt 0:00:32]} a4 {[%emt 0:00:15]} 39. Kd2 {[%emt 0:00:26]} a3 {[%emt 0:00:06]} 40. Nd4 {[%emt 0:00:06]} Kxg7 {[%emt 0:02:46]} 41. Kc3 {[%emt 0:00:25]} a2 {[%emt 0:00:05]} 42. Nb3 {[%emt 0:00:09]} c5 {[%emt 0:00:15]} 43. dxc6 {[%emt 0:00:13]} Nxc6 {[%emt 0:00:04]} 44. Kb2 {[%emt 0:00:25]} Ne5 {[%emt 0:00:26]} 45. Nd2 {[%emt 0:00:16]} Kg6 {[%emt 0:00:32]} 46. Kxa2 {[%emt 0:00:52]} Kf5 {[%emt 0:00:11]} 47. Ne4 {[%emt 0:01:34]} Nxc4 {[%emt 0:02:24]} 48. Nf2 {[%emt 0:00:25]} Nd2 {[%emt 0:00:43]} 49. Nxh3 {[%emt 0:00:13]} Nxf3 {[%emt 0:00:04]} 50. Kb3 {[%emt 0:00:18]} Nxh2 {[%emt 0:01:44]} 51. Kc4 {[%emt 0:00:15]} Ke5 {[%emt 0:00:27]} 52. Nf2 {[%emt 0:00:59]} d5+ {[%emt 0:00:10]} 53. Kb5 {[%emt 0:00:07]} Kd4 {[%emt 0:00:47]} 54. Kxb6 {[%emt 0:00:15]} Ke3 {[%emt 0:00:03]} 55. Kc5 {[%emt 0:00:25]} d4 {[%emt 0:00:02]} 56. Nd1+ {[%emt 0:00:16]} Kd3 {[%emt 0:00:43]} 57. Nf2+ {[%emt 0:00:08]} Ke3 {[%emt 0:00:03]} 58. Nd1+ {[%emt 0:00:07]} Ke4 {[%emt 0:00:02]} 59. Nf2+ {[%emt 0:00:09]} Ke5 {[%emt 0:00:03]} 60. Nd3+ {[%emt 0:00:09]} Ke4 {[%emt 0:00:06]} 1/2-1/2

[Event "2nd Cambridge Open 2024"]
[Site "Cambridge"]
[Date "2024.02.19"]
[Round "1.39"]
[White "Jermy, Jaden"]
[Black "Gardner, Phillip K"]
[Result "1-0"]
[ECO "A13"]
[WhiteElo "1968"]
[BlackElo "1769"]
[Annotator "NA"]
[PlyCount "67"]
[EventDate "2024.02.18"]
[EventType "swiss"]
[EventCountry "ENG"]
[SourceTitle "playchess.com"]
[Source "ChessBase"]
[SourceQuality "1"]
[TimeControl "5400+30"]

1. Nf3 {[%emt 0:00:03]} Nf6 {[%emt 0:00:18]} 2. g3 {[%emt 0:00:09]} b5 {[%emt 0:02:13]} 3. Bg2 {[%emt 0:00:55]} Bb7 {[%emt 0:00:03]} 4. O-O {[%emt 0:01:22]} c5 {[%emt 0:00:24]} 5. b3 {[%emt 0:01:27]} e6 {[%emt 0:00:19]} 6. c4 {[%emt 0:00:29]} a6 {[%emt 0:02:21]} 7. Bb2 {[%emt 0:02:58]} Be7 {[%emt 0:00:17]} 8. Qc2 {[%emt 0:01:21]} d6 {[%emt 0:00:41]} 9. e3 {[%emt 0:02:41]} O-O {[%emt 0:00:54]} 10. Nc3 {[%emt 0:15:33]} b4 {[%emt 0:05:01]} 11. Ne2 {[%emt 0:00:13]} Nbd7 {[%emt 0:00:34]} 12. Nf4 {[%emt 0:10:45]} e5 {[%emt 0:07:53]} 13. Ne2 {[%emt 0:03:44]} Re8 {[%emt 0:04:11]} 14. d4 {[%emt 0:03:41]} exd4 {[%emt 0:05:56]} 15. exd4 {[%emt 0:00:25]} Be4 {[%emt 0:02:05]} 16. Qd2 {[%emt 0:00:33]} Bf8 {[%emt 0:08:24]} 17. Rfe1 {[%emt 0:07:47]} Qc7 {[%emt 0:02:33]} 18. Rad1 {[%emt 0:06:18]} Rad8 {[%emt 0:01:28]} 19. Nf4 {[%emt 0:01:24]} h6 {[%emt 0:06:46]} 20. d5 {[%emt 0:04:37]} g5 $14 {[%emt 0:05:28]} (20... a5 $11) 21. Nd3 {[%emt 0:03:56]} Bg7 {[%emt 0:00:36]} 22. h4 {[%emt 0:02:54]} g4 {[%emt 0:12:25]} 23. Nh2 {[%emt 0:00:04]} Bxg2 {[%emt 0:16:45]} 24. Kxg2 {[%emt 0:00:02]} Ne4 {[%emt 0:01:13]} 25. Qf4 {[%emt 0:01:18]} Nc3 {[%emt 0:07:59]} 26. Bxc3 {[%emt 0:02:02]} bxc3 {[%emt 0:00:55]} 27. Nxg4 {[%emt 0:00:28]} c2 {[%emt 0:02:42]} 28. Rc1 {[%emt 0:00:28]} h5 {[%emt 0:01:24]} 29. Nh6+ {[%emt 0:01:15]} Kh7 {[%emt 0:02:07]} 30. Nxf7 {[%emt 0:00:27]} Rf8 {[%emt 0:00:21]} 31. Qxd6 {[%emt 0:02:32]} Qa5 {[%emt 0:00:39]} 32. Ng5+ {[%emt 0:00:34]} Kh8 {[%emt 0:00:15]} 33. Qg6 {[%emt 0:00:32]} Nf6 {[%emt 0:00:17]} 34. Re7 {[%emt 0:00:26]} 1-0

[Event "2nd Cambridge Open 2024"]
[Site "Cambridge"]
[Date "2024.02.19"]
[Round "1.40"]
[White "Spanton, Tim R"]
[Black "Hutchinson, Norman A"]
[Result "1/2-1/2"]
[ECO "B19"]
[WhiteElo "1736"]
[BlackElo "1962"]
[Annotator "NA"]
[PlyCount "90"]
[EventDate "2024.02.18"]
[EventType "swiss"]
[EventCountry "ENG"]
[SourceTitle "playchess.com"]
[Source "ChessBase"]
[SourceQuality "1"]
[TimeControl "5400+30"]

1. e4 {[%emt 0:00:03]} c6 {[%emt 0:00:07]} 2. d4 {[%emt 0:00:05]} d5 {[%emt 0:00:05]} 3. Nc3 {[%emt 0:00:17]} dxe4 {[%emt 0:00:08]} 4. Nxe4 {[%emt 0:00:04]} Bf5 {[%emt 0:00:12]} 5. Ng3 {[%emt 0:00:05]} Bg6 {[%emt 0:00:11]} 6. Nf3 {[%emt 0:00:09]} Nd7 {[%emt 0:00:21]} 7. h4 {[%emt 0:00:12]} h6 {[%emt 0:00:05]} 8. h5 {[%emt 0:00:03]} Bh7 {[%emt 0:00:06]} 9. Bd3 {[%emt 0:00:03]} Bxd3 {[%emt 0:00:08]} 10. Qxd3 {[%emt 0:00:05]} e6 {[%emt 0:00:16]} 11. Bf4 {[%emt 0:00:52]} Qa5+ {[%emt 0:00:10] B19: Classical Caro-Kann: 4...Bf5 main line.} 12. Bd2 {[%emt 0:00:13]} Bb4 {[%emt 0:00:12]} 13. c3 {[%emt 0:00:47]} Be7 {[%emt 0:00:06]} 14. c4 {[%emt 0:01:48]} Qc7 {[%emt 0:00:05]} 15. O-O-O {[%emt 0:00:23]} Ngf6 {[%emt 0:00:08]} 16. Ne4 {[%emt 0:00:39]} b5 {[%emt 0:03:18]} 17. c5 {[%emt 0:03:39] was the old line (17.Nxf6+).} a5 {[%emt 0:06:34]} 18. Nxf6+ $146 {[%emt 0:04:07]} ({Predecessor:} 18. Kb1 a4 19. Nxf6+ Nxf6 20. Ne5 Nd5 21. f4 Bf6 22. g4 a3 23. b3 O-O-O 24. b4 Bxe5 25. fxe5 {½-½ Megaranto,S (2492)-Al Sayed,M (2486) Asia Classical 15th 2006 (2)}) 18... Nxf6 {[%emt 0:00:15]} 19. Ne5 {[%emt 0:00:21]} Rd8 {[%emt 0:08:18]} 20. Qg3 {[%emt 0:03:16]} Rxd4 {[%emt 0:06:25]} 21. Qxg7 {[%emt 0:01:24]} Rh7 {[%emt 0:01:01]} 22. Qg3 {[%emt 0:01:06]} Nd7 {[%emt 0:13:58]} 23. Nxd7 {[%emt 0:10:24]} Qxg3 {[%emt 0:02:44]} 24. fxg3 {[%emt 0:00:05]} Rxd7 {[%emt 0:00:54]} 25. Bxa5 {[%emt 0:00:17]} Rxd1+ {[%emt 0:06:25]} 26. Rxd1 {[%emt 0:00:14]} Rg7 {[%emt 0:00:08]} 27. Bd2 {[%emt 0:05:25]} Rxg3 {[%emt 0:02:20]} 28. Bxh6 {[%emt 0:01:39]} Rxg2 {[%emt 0:49:50]} 29. Bf4 {[%emt 1:07:15]} Rg4 {[%emt 0:00:00]} 30. Bd6 {[%emt 0:00:00]} Bg5+ {[%emt 0:00:00]} 31. Kc2 {[%emt 0:00:00]} Rh4 {[%emt 0:00:00]} 32. Rd3 {[%emt 0:00:00]} Rxh5 {[%emt 0:00:00]} 33. Ra3 {[%emt 0:00:00]} f5 {[%emt 0:00:00]} 34. Ra8+ {[%emt 0:00:00]} Kf7 {[%emt 0:00:00]} 35. Rf8+ {[%emt 0:00:00]} Kg7 {[%emt 0:00:00]} 36. Re8 {[%emt 0:00:00]} f4 {[%emt 0:00:00]} 37. Rxe6 {[%emt 0:00:00]} Rh2+ {[%emt 0:00:00]} 38. Kd3 {[%emt 0:00:00] [#]} Kf7 $11 {[%emt 0:00:00]} ({Not} 38... Rxb2 39. Be5+ Kf7 40. Rxc6 Rxa2 41. Rb6 $11) (38... Rh3+ $1 $19 39. Ke4 f3) 39. Re2 {[%emt 0:00:00]} Rh3+ {[%emt 0:00:00]} 40. Ke4 {[%emt 0:00:00]} Re3+ {[%emt 0:00:00]} 41. Rxe3 {[%emt 0:00:00]} fxe3 {[%emt 0:00:00]} 42. Kd3 {[%emt 0:00:00]} Ke6 {[%emt 0:00:00]} 43. b3 {[%emt 0:00:00]} b4 {[%emt 0:00:00]} 44. Bf8 {[%emt 0:00:00]} Kd5 {[%emt 0:00:00]} 45. Bd6 {[%emt 0:00:00]} Bh6 {[%emt 0:00:00]} 1/2-1/2

[Event "2nd Cambridge Open 2024"]
[Site "Cambridge"]
[Date "2024.02.19"]
[Round "1.41"]
[White "Myall, Ivan J"]
[Black "Zhang, Junyi"]
[Result "0-1"]
[ECO "C02"]
[WhiteElo "1951"]
[BlackElo "1655"]
[Annotator "NA"]
[PlyCount "76"]
[EventDate "2024.02.18"]
[EventType "swiss"]
[EventCountry "ENG"]
[SourceTitle "playchess.com"]
[Source "ChessBase"]
[SourceQuality "1"]
[TimeControl "5400+30"]

1. d4 {[%emt 0:00:02]} e6 {[%emt 0:00:19]} 2. e4 {[%emt 0:00:15]} d5 {[%emt 0:00:14]} 3. e5 {[%emt 0:00:09]} c5 {[%emt 0:00:07]} 4. c3 {[%emt 0:00:03]} Qb6 {[%emt 0:00:19]} 5. Nf3 {[%emt 0:00:36]} Nc6 {[%emt 0:01:10]} 6. a3 {[%emt 0:00:29]} c4 {[%emt 0:00:13]} 7. Nbd2 {[%emt 0:00:32]} Na5 {[%emt 0:00:20]} 8. Be2 {[%emt 0:02:36]} Bd7 {[%emt 0:00:41]} 9. O-O {[%emt 0:00:20]} Ne7 {[%emt 0:00:35]} 10. Qc2 {[%emt 0:11:37]} Qc7 {[%emt 0:01:37]} 11. Ng5 {[%emt 0:03:37]} h6 {[%emt 0:01:51]} 12. Nh3 {[%emt 0:02:59]} Nc8 {[%emt 0:01:26]} 13. f4 {[%emt 0:06:53]} g6 {[%emt 0:03:08]} 14. Bd1 {[%emt 0:07:24]} Nb6 {[%emt 0:07:49]} 15. Qb1 {[%emt 0:03:24]} O-O-O {[%emt 0:05:26]} 16. a4 {[%emt 0:03:06]} Kb8 {[%emt 0:06:23]} 17. b4 {[%emt 0:07:28]} cxb3 {[%emt 0:00:21]} 18. Nxb3 {[%emt 0:00:09]} Nbc4 {[%emt 0:01:56]} 19. Rf3 {[%emt 0:05:49]} Rc8 {[%emt 0:02:11]} 20. Nf2 {[%emt 0:01:10]} Nxb3 {[%emt 0:03:13]} 21. Qxb3 {[%emt 0:01:21]} Qa5 $11 {[%emt 0:03:36]} 22. Nd3 {[%emt 0:04:34]} Nb6 {[%emt 0:00:47]} 23. Nb4 {[%emt 0:01:03]} Bxa4 {[%emt 0:10:47]} 24. Qb2 {[%emt 0:11:04]} Bxb4 {[%emt 0:04:18]} 25. cxb4 {[%emt 0:00:20]} Qb5 {[%emt 0:02:56]} 26. Be2 {[%emt 0:04:09]} Qd7 {[%emt 0:00:21]} 27. Bd3 {[%emt 0:04:46]} Bb5 {[%emt 0:03:54]} 28. Qa3 {[%emt 0:02:51]} a6 {[%emt 0:00:31]} 29. Bxb5 {[%emt 0:00:52]} Qxb5 {[%emt 0:01:39]} 30. Qa5 {[%emt 0:00:12]} Qxa5 {[%emt 0:00:09]} 31. bxa5 {[%emt 0:00:04]} Nc4 {[%emt 0:00:08]} 32. g4 {[%emt 0:01:25]} h5 {[%emt 0:00:54]} 33. h3 {[%emt 0:00:25]} hxg4 {[%emt 0:00:50]} 34. hxg4 {[%emt 0:00:11]} Rh4 {[%emt 0:00:02]} 35. Rg3 {[%emt 0:00:25]} Rch8 {[%emt 0:00:05]} 36. Kg2 {[%emt 0:03:29]} Rh1 {[%emt 0:01:21]} 37. f5 {[%emt 0:00:46]} R8h2+ {[%emt 0:00:11]} 38. Kf3 Rf1# {[%emt 0:00:30]} 0-1

[Event "2nd Cambridge Open 2024"]
[Site "Cambridge"]
[Date "2024.02.19"]
[Round "1.42"]
[White "Bowers, Francis J"]
[Black "Reynolds, D Ian W"]
[Result "0-1"]
[ECO "C54"]
[WhiteElo "1732"]
[BlackElo "1960"]
[Annotator "NA RC"]
[PlyCount "138"]
[EventDate "2024.02.18"]
[EventType "swiss"]
[EventCountry "ENG"]
[SourceTitle "playchess.com"]
[Source "ChessBase"]
[SourceQuality "1"]
[TimeControl "5400+30"]

1. e4 {[%emt 0:00:02]} e5 {[%emt 0:00:06]} 2. Nf3 {[%emt 0:00:06]} Nc6 {[%emt 0:00:06]} 3. d4 {[%emt 0:00:24]} exd4 {[%emt 0:00:09]} 4. Bc4 {[%emt 0:01:15]} Bc5 {[%emt 0:01:44]} 5. c3 {[%emt 0:01:23]} Nf6 {[%emt 0:00:59]} 6. e5 {[%emt 0:05:31]} d5 {[%emt 0:01:42]} 7. exf6 {[%emt 0:01:19]} dxc4 {[%emt 0:00:07]} 8. cxd4 {[%emt 1:24:30] C54: Giuoco Piano: 4 c3 Nf6, main lines with 5 d4 and 5 d3.} Bb4+ {[%emt 0:06:50]} 9. Nc3 {[%emt 0:00:00]} Qxf6 {[%emt 0:00:44]} 10. O-O {[%emt 0:00:00]} Bxc3 {[%emt 0:06:58]} 11. bxc3 {[%emt 0:00:00]} O-O {[%emt 0:00:10]} 12. Re1 {[%emt 0:00:00]} Bg4 {[%emt 0:02:53]} 13. h3 {[%emt 0:00:00]} Bxf3 {[%emt 0:00:12]} 14. Qxf3 {[%emt 0:00:00]} Qxf3 {[%emt 0:00:08]} 15. gxf3 {[%emt 0:00:00]} Rfe8 {[%emt 0:00:53]} 16. Bf4 {[%emt 0:00:00]} Ne7 {[%emt 0:02:36]} 17. Re5 {[%emt 0:00:00]} c6 {[%emt 0:07:53]} 18. Rae1 {[%emt 0:00:00]} Kf8 {[%emt 0:00:21]} 19. Rc5 {[%emt 0:00:00]} Rad8 {[%emt 0:10:45]} 20. Rxc4 {[%emt 0:00:00]} Nd5 {[%emt 0:01:34]} 21. Rxe8+ {[%emt 0:00:00]} Kxe8 {[%emt 0:01:59]} 22. Bd2 {[%emt 0:00:00]} Kd7 {[%emt 0:00:28]} 23. Ra4 {[%emt 0:00:00]} a6 {[%emt 0:02:03]} 24. c4 {[%emt 0:00:00]} Ne7 {[%emt 0:08:12]} 25. Be3 {[%emt 0:00:00]} Kc8 {[%emt 0:01:05]} 26. Ra3 {[%emt 0:00:00]} Nf5 {[%emt 0:06:34]} 27. Rd3 {[%emt 0:00:00]} Nh4 {[%emt 0:01:52]} 28. f4 {[%emt 0:00:00]} Nf5 {[%emt 0:00:22]} 29. Kf1 {[%emt 0:00:00]} Nd6 {[%emt 0:02:47]} 30. Rc3 {[%emt 0:00:00]} Ne4 $15 {[%emt 0:00:54]} 31. Rd3 {[%emt 0:00:00]} f5 {[%emt 0:03:03]} 32. Bc1 {[%emt 0:00:00]} b5 {[%emt 0:08:24]} 33. cxb5 {[%emt 0:00:00]} axb5 {[%emt 0:00:20]} 34. f3 {[%emt 0:00:00]} Nf6 {[%emt 0:00:25]} 35. Ba3 {[%emt 0:00:00]} Nd5 {[%emt 0:00:58]} 36. Bc1 {[%emt 0:00:00]} Kb7 {[%emt 0:00:31]} 37. Kf2 {[%emt 0:00:00]} Ra8 {[%emt 0:01:02]} 38. a3 {[%emt 0:00:00]} Ra4 {[%emt 0:03:06]} 39. Kg3 {[%emt 0:00:00]} Kc7 {[%emt 0:01:57]} 40. Kh4 {[%emt 0:00:00]} Kd7 {[%emt 0:01:10]} 41. Kg5 {[%emt 0:00:00]} Ke6 {[%emt 0:00:17]} 42. Rd1 {[%emt 0:00:00]} g6 {[%emt 0:04:28]} 43. Bb2 {[%emt 0:00:05]} Rc4 {[%emt 0:00:46]} 44. Re1+ {[%emt 0:00:57]} Kf7 {[%emt 0:00:14]} 45. Re2 {[%emt 0:00:25]} Kg7 {[%emt 0:03:03]} 46. a4 {[%emt 0:04:45]} h6+ {[%emt 0:01:02]} 47. Kh4 {[%emt 0:00:07]} Rxa4 {[%emt 0:00:12]} 48. Re6 {[%emt 0:01:39]} Rc4 {[%emt 0:00:11]} 49. Rd6 {[%emt 0:01:09]} Kf7 {[%emt 0:00:48]} 50. Rd7+ {[%emt 0:00:54]} Ke6 {[%emt 0:00:19]} 51. Rh7 {[%emt 0:00:45]} Kf6 {[%emt 0:01:29]} 52. Rxh6 {[%emt 0:00:36]} Rc2 {[%emt 0:00:55]} 53. Ba3 {[%emt 0:01:49]} Kg7 {[%emt 0:00:39]} 54. Bf8+ {[%emt 0:00:42]} Kxf8 {[%emt 0:00:14]} 55. Rxg6 {[%emt 0:00:07]} Kf7 {[%emt 0:00:24]} 56. Rh6 {[%emt 0:00:54]} b4 {[%emt 0:00:34]} 57. Kg5 {[%emt 0:00:20]} Ne7 {[%emt 0:01:07]} 58. Rf6+ {[%emt 0:00:32]} Ke8 {[%emt 0:01:12]} 59. h4 {[%emt 0:00:39]} Rg2+ {[%emt 0:00:18]} 60. Kh5 {[%emt 0:00:23]} b3 {[%emt 0:00:11]} 61. d5 {[%emt 0:00:33]} cxd5 {[%emt 0:00:31]} 62. Rxf5 {[%emt 0:00:08]} b2 {[%emt 0:00:28]} 63. Re5 {[%emt 0:02:34]} b1=Q {[%emt 0:00:39]} 64. f5 {[%emt 0:00:24]} Kf7 {[%emt 0:00:21]} 65. f4 {[%emt 0:02:35]} Qd1+ {[%emt 0:00:12]} 66. Kh6 {[%emt 0:00:08]} Qg4 {[%emt 0:00:18]} 67. Rxe7+ {[%emt 0:00:17]} Kxe7 {[%emt 0:00:11]} 68. f6+ {[%emt 0:00:10]} Kxf6 {[%emt 0:00:08]} 69. h5 {[%emt 0:00:13]} Qg7# {[%emt 0:00:09]} 0-1

[Event "2nd Cambridge Open 2024"]
[Site "Cambridge"]
[Date "2024.02.19"]
[Round "1.44"]
[White "Sasikumar, Srivathsan"]
[Black "Cole, James"]
[Result "1/2-1/2"]
[ECO "B33"]
[WhiteElo "1696"]
[BlackElo "1940"]
[Annotator "NA RC"]
[PlyCount "117"]
[EventDate "2024.02.18"]
[EventType "swiss"]
[EventCountry "ENG"]
[SourceTitle "playchess.com"]
[Source "ChessBase"]
[SourceQuality "1"]
[TimeControl "5400+30"]

1. e4 {[%emt 0:00:11]} c5 {[%emt 0:00:02]} 2. Nf3 {[%emt 0:01:05]} Nc6 {[%emt 0:00:05]} 3. d4 {[%emt 0:00:07]} cxd4 {[%emt 0:00:05]} 4. Nxd4 {[%emt 0:00:08]} Nf6 {[%emt 0:00:04]} 5. Nc3 {[%emt 0:01:28]} e5 {[%emt 0:03:17]} 6. Ndb5 {[%emt 0:00:17]} d6 {[%emt 0:00:07]} 7. Nd5 {[%emt 0:04:20]} Nxd5 {[%emt 0:00:37] B33: Sicilian: Pelikan and Sveshnikov Variations.} 8. Qxd5 {[%emt 0:01:49]} Be6 {[%emt 0:03:05]} 9. Qd1 {[%emt 0:00:55]} a6 {[%emt 0:06:49]} 10. Nc3 {[%emt 0:00:30]} Be7 {[%emt 0:01:22]} 11. Be3 {[%emt 0:01:58]} O-O {[%emt 0:01:26]} 12. Be2 {[%emt 0:01:07]} Rc8 {[%emt 0:06:06]} 13. O-O {[%emt 0:01:34]} Na5 {[%emt 0:14:07]} 14. Qd2 {[%emt 0:09:40]} Qc7 {[%emt 0:10:11]} 15. Rac1 {[%emt 0:05:16]} Nc4 {[%emt 0:04:07]} 16. Bxc4 {[%emt 0:00:20]} Qxc4 {[%emt 0:00:14]} 17. Rfd1 {[%emt 0:01:06]} b5 {[%emt 0:07:34]} 18. a3 {[%emt 0:01:35]} Rb8 {[%emt 0:06:52]} 19. Nd5 {[%emt 0:05:39]} Bxd5 {[%emt 0:01:22]} 20. Qxd5 {[%emt 0:00:10]} Rfc8 {[%emt 0:02:04]} 21. c3 {[%emt 0:02:10]} Qxd5 {[%emt 0:01:42]} 22. Rxd5 {[%emt 0:00:19]} Rc4 {[%emt 0:01:30]} 23. f3 {[%emt 0:00:43]} f6 {[%emt 0:04:32]} 24. Kf2 {[%emt 0:02:07]} Kf7 {[%emt 0:00:08]} 25. Ke2 {[%emt 0:01:23]} Ke6 {[%emt 0:00:52]} 26. Rcd1 {[%emt 0:00:44]} g6 {[%emt 0:00:58]} 27. g4 $15 {[%emt 0:00:44]} (27. h4 $11 {is more appropriate.}) 27... f5 {[%emt 0:02:10]} 28. gxf5+ {[%emt 0:00:20]} gxf5 {[%emt 0:00:20]} 29. exf5+ {[%emt 0:00:42]} Kxf5 {[%emt 0:00:11]} 30. f4 {[%emt 0:00:09]} Rb7 {[%emt 0:05:53]} 31. fxe5 {[%emt 0:01:41]} dxe5 {[%emt 0:00:38]} 32. Rg1 {[%emt 0:07:41]} Ke6 {[%emt 0:03:01]} 33. Rd3 {[%emt 0:00:31]} Bf6 {[%emt 0:01:45]} 34. Rgd1 {[%emt 0:04:03]} Be7 {[%emt 0:07:14]} 35. Bf2 {[%emt 0:03:27]} a5 {[%emt 0:01:06]} 36. Bg3 {[%emt 0:07:34]} b4 {[%emt 0:01:20]} 37. Rd5 {[%emt 0:01:31]} Rc5 {[%emt 0:01:48]} 38. axb4 {[%emt 0:00:27]} axb4 {[%emt 0:00:06]} 39. c4 {[%emt 0:00:23]} Rxc4 {[%emt 0:01:41]} 40. Rxe5+ {[%emt 0:00:07]} Kf7 {[%emt 0:00:10]} 41. Rf1+ {[%emt 0:01:06]} Ke8 {[%emt 0:01:14]} 42. Kd3 {[%emt 0:01:02]} Rc6 {[%emt 0:00:40]} 43. Rd5 {[%emt 0:01:47]} Bf6 {[%emt 0:01:23]} 44. Be5 {[%emt 0:03:18]} Be7 {[%emt 0:00:47]} 45. Bg3 {[%emt 0:03:29]} Bf6 {[%emt 0:00:05]} 46. Be5 {[%emt 0:03:51]} Be7 {[%emt 0:02:40]} 47. Rf2 {[%emt 0:01:21]} Rd7 {[%emt 0:00:00]} 48. Rxd7 {[%emt 0:00:47]} Kxd7 {[%emt 0:00:00]} 49. Bd4 {[%emt 0:03:00]} Rh6 {[%emt 0:00:00]} 50. Be5 {[%emt 0:01:28]} Rc6 {[%emt 0:00:00]} 51. Re2 {[%emt 0:01:51]} Bf8 {[%emt 0:00:00]} 52. Rg2 {[%emt 0:04:12]} Rh6 {[%emt 0:01:29]} 53. Kc4 {[%emt 0:04:31]} Rh5 {[%emt 0:00:27]} 54. Kd5 {[%emt 0:00:56]} Be7 {[%emt 0:00:56]} 55. Rg7 {[%emt 0:01:14]} Ke8 {[%emt 0:00:23]} 56. Rg8+ {[%emt 0:02:05]} Kf7 {[%emt 0:00:18]} 57. Rg7+ {[%emt 0:00:12]} Ke8 {[%emt 0:00:01]} 58. Rg8+ {[%emt 0:01:18]} Kf7 {[%emt 0:00:04]} 59. Rg7+ {[%emt 0:00:51]} 1/2-1/2

[Event "2nd Cambridge Open 2024"]
[Site "Cambridge"]
[Date "2024.02.19"]
[Round "1.46"]
[White "Berkley, Stephen W"]
[Black "Hanache, Kai"]
[Result "0-1"]
[ECO "D94"]
[WhiteElo "1667"]
[BlackElo "1926"]
[Annotator "NA COMBH"]
[PlyCount "104"]
[EventDate "2024.02.18"]
[EventType "swiss"]
[EventCountry "ENG"]
[SourceTitle "playchess.com"]
[Source "ChessBase"]
[SourceQuality "1"]
[TimeControl "5400+30"]

1. d4 {[%emt 0:00:09]} Nf6 {[%emt 0:00:11]} 2. c4 {[%emt 0:00:07]} g6 {[%emt 0:00:08]} 3. Nc3 {[%emt 0:00:08]} d5 {[%emt 0:00:06]} 4. Nf3 {[%emt 0:00:35]} Bg7 {[%emt 0:00:15]} 5. e3 {[%emt 0:01:13]} c5 {[%emt 0:01:53]} 6. dxc5 {[%emt 0:08:14]} Qa5 {[%emt 0:00:46]} 7. Bd2 {[%emt 0:00:37]} Qxc5 {[%emt 0:00:44]} 8. Qb3 {[%emt 0:02:55]} dxc4 {[%emt 0:03:17]} 9. Qxc4 {[%emt 0:03:45]} Qxc4 {[%emt 0:01:55]} 10. Bxc4 {[%emt 0:00:05]} a6 {[%emt 0:00:06]} 11. O-O {[%emt 0:10:36]} O-O {[%emt 0:00:35]} 12. Rac1 {[%emt 0:03:20]} Nc6 {[%emt 0:00:51]} 13. h3 {[%emt 0:06:41]} Rd8 {[%emt 0:00:56]} 14. Rfd1 {[%emt 0:00:46]} Bf5 {[%emt 0:01:08]} 15. Be1 {[%emt 0:07:01]} b5 {[%emt 0:02:10]} 16. Be2 {[%emt 0:01:06]} Rxd1 {[%emt 0:02:19]} 17. Rxd1 {[%emt 0:00:09]} Rc8 {[%emt 0:00:38]} 18. g4 {[%emt 0:12:49]} Be6 {[%emt 0:01:04]} 19. Ng5 {[%emt 0:00:41]} Bc4 {[%emt 0:01:01]} 20. Bxc4 {[%emt 0:00:29]} bxc4 {[%emt 0:01:25]} 21. b3 {[%emt 0:01:33]} cxb3 {[%emt 0:01:01]} 22. axb3 {[%emt 0:00:05]} Rb8 {[%emt 0:01:08]} 23. Rb1 {[%emt 0:03:08]} h5 {[%emt 0:01:25]} 24. f3 {[%emt 0:00:55]} hxg4 {[%emt 0:01:40]} 25. hxg4 {[%emt 0:00:09]} Bh6 {[%emt 0:00:27]} 26. Nge4 {[%emt 0:03:49]} Bxe3+ {[%emt 0:00:42]} 27. Bf2 {[%emt 0:00:12]} Bxf2+ {[%emt 0:01:11]} 28. Kxf2 {[%emt 0:00:05]} Nxe4+ {[%emt 0:01:45]} 29. Nxe4 {[%emt 0:02:58]} Rd8 {[%emt 0:00:17]} 30. Rc1 {[%emt 0:03:01]} Ne5 {[%emt 0:01:24]} 31. Rc7 {[%emt 0:00:25]} Kf8 {[%emt 0:00:42]} 32. Nc5 {[%emt 0:02:49]} a5 {[%emt 0:00:56]} 33. Ke3 {[%emt 0:26:25]} Rd6 {[%emt 0:00:57]} 34. Ra7 {[%emt 0:00:00]} Nc6 {[%emt 0:00:43]} 35. Ra8+ {[%emt 0:00:00]} Kg7 {[%emt 0:00:17]} 36. Nb7 {[%emt 0:00:00]} Rd5 {[%emt 0:00:27]} 37. Ra6 {[%emt 0:00:00]} Rb5 {[%emt 0:00:27]} 38. Rxc6 {[%emt 0:00:00]} Rxb3+ {[%emt 0:00:27]} 39. Ke4 {[%emt 0:00:00]} Rxb7 {[%emt 0:00:16]} 40. Ra6 {[%emt 0:00:00]} Rb4+ {[%emt 0:00:12]} 41. Ke5 {[%emt 0:00:00]} a4 {[%emt 0:00:45]} 42. Ra7 {[%emt 0:00:00]} e6 {[%emt 0:00:18]} 43. f4 {[%emt 0:00:00]} g5 {[%emt 0:03:11]} 44. f5 {[%emt 0:00:00]} Rb5+ {[%emt 0:00:19]} 45. Ke4 {[%emt 0:00:00]} exf5+ {[%emt 0:00:56]} 46. gxf5 {[%emt 0:00:00]} Rb4+ {[%emt 0:00:25]} 47. Ke5 {[%emt 0:00:00]} Rb1 {[%emt 0:00:48]} 48. Rxa4 {[%emt 0:00:00]} Re1+ {[%emt 0:00:08]} 49. Kd6 {[%emt 0:00:00]} Kf6 {[%emt 0:00:12]} 50. Ra7 {[%emt 0:00:00]} Rd1+ {[%emt 0:00:24]} 51. Kc6 {[%emt 0:00:00]} Re1 {[%emt 0:00:44]} 52. Kd6 {[%emt 0:00:00]} Rf1 {[%emt 0:00:13]} 0-1